Workbook

Sheet NGC024
B3: ρ(r) = ρ0sech^8( r/ r_c)
A6: M(R) =4πρ0,r_c^3 ·I(u) | C6: u = R/r_c | D6: I(u) = Integrale de 0 à u de ( x^2sech^8(x)dx | H6: V_TURI(R) = Racine (G·M(R)/R)
H8: G= | I8: =4.3009*POWER(10,-6) -> 4.3009e-06 | J8: 10^-6,KPC,(Km/s)^2/Mo
A9: NGC0247 | B9: R_max= | C9: =A40 -> 14.54 | D9: V_obs(R_max)= | E9: =B40 -> 107
B10: M_totale= | C10: V_obs^2(R_max).R_max/G= | E10: =E9*E9*C9/I8 -> 3.87054942e+10 | F10: Mo | G10: I(infini)= | H10: 0.0648738184
G11: M(R) = racine(G,M(R)/R)
B12: r_c=R_max/1,2= | C12: =C9/1.2 -> 12.11666667 | D12: ρ0=M_tot/4.π.r_c^3.I(infini)/1,17= | E12: =E10/(POWER(C12,3)*4*3.14159*H10)/1.17 -> 22811734.9 | F12: Mo/kpc^3 | G12: π= | H12: 3.14159
A14: R | B14: V_obs | C14: Incer V_obs | D14: u=R/r-c | E14: I(U) par table | F14: M(R) | G14: V_TURI | H14: Erreur % | J14: calculs intermediaires de I(u)
A15: 1.08 | B15: 34.6 | C15: 0.9 | D15: =A15/$C$12 -> 0.08913342503 | E15: =N15*K15+O15*M15 -> 0.0002336391956 | F15: =4*$H$12*$E$12*POWER($C$12,3)*E15 -> 119141481.7 | G15: =POWER($I$8*F15/A15,0.5) -> 21.78207721 | H15: =ROUND(ABS((B15-G15)/B15)*100,2) -> 37.05 | J15: =INDEX(Integrale!$H$3:$H$502,MATCH('NGC024'!D15,Integrale!$H$3:$H$502,1)) -> 0.08 | K15: =INDEX(Integrale!$I$3:$I$502,MATCH('NGC024'!D15,Integrale!$H$3:$H$502,1)) -> 0.0001693376 | L15: =INDEX(Integrale!$H$3:$H$502,MATCH('NGC024'!D15,Integrale!$H$3:$H$502,1)+1) -> 0.09 | M15: =INDEX(Integrale!$I$3:$I$502,MATCH('NGC024'!D15,Integrale!$H$3:$H$502,1)+1) -> 0.0002397401 | N15: =(L15-D15)/(L15-J15) -> 0.08665749656 | O15: =(D15-J15)/(L15-J15) -> 0.9133425034
A16: 1.61 | B16: 47 | C16: 0.8 | D16: =A16/$C$12 -> 0.1328748281 | E16: =N16*K16+O16*M16 -> 0.000754044771 | F16: =4*$H$12*$E$12*POWER($C$12,3)*E16 -> 384516010 | G16: 32.04969847 | H16: 31.81 | J16: =INDEX(Integrale!$H$3:$H$502,MATCH('NGC024'!D16,Integrale!$H$3:$H$502,1)) -> 0.13 | K16: =INDEX(Integrale!$I$3:$I$502,MATCH('NGC024'!D16,Integrale!$H$3:$H$502,1)) -> 0.0007052805 | L16: =INDEX(Integrale!$H$3:$H$502,MATCH('NGC024'!D16,Integrale!$H$3:$H$502,1)+1) -> 0.14 | M16: =INDEX(Integrale!$I$3:$I$502,MATCH('NGC024'!D16,Integrale!$H$3:$H$502,1)+1) -> 0.0008749055 | N16: =(L16-D16)/(L16-J16) -> 0.7125171939 | O16: 0.2874828061
A17: 2.15 | B17: 59.1 | C17: 3.1 | D17: 0.1774415406 | E17: 0.001733039185 | F17: 883742369.4 | G17: 42.04586398 | H17: 28.86 | J17: =INDEX(Integrale!$H$3:$H$502,MATCH('NGC024'!D17,Integrale!$H$3:$H$502,1)) -> 0.17 | K17: =INDEX(Integrale!$I$3:$I$502,MATCH('NGC024'!D17,Integrale!$H$3:$H$502,1)) -> 0.001531222 | L17: =INDEX(Integrale!$H$3:$H$502,MATCH('NGC024'!D17,Integrale!$H$3:$H$502,1)+1) -> 0.18 | M17: =INDEX(Integrale!$I$3:$I$502,MATCH('NGC024'!D17,Integrale!$H$3:$H$502,1)+1) -> 0.0018024255 | N17: 0.2558459422 | O17: 0.7441540578
A18: 2.7 | B18: 64.4 | C18: 1.4 | D18: 0.2228335626 | E18: 0.003286004748 | F18: 1675658374 | G18: 51.66429779 | H18: 19.78 | J18: =INDEX(Integrale!$H$3:$H$502,MATCH('NGC024'!D18,Integrale!$H$3:$H$502,1)) -> 0.22 | K18: =INDEX(Integrale!$I$3:$I$502,MATCH('NGC024'!D18,Integrale!$H$3:$H$502,1)) -> 0.0031686489 | L18: =INDEX(Integrale!$H$3:$H$502,MATCH('NGC024'!D18,Integrale!$H$3:$H$502,1)+1) -> 0.23 | M18: =INDEX(Integrale!$I$3:$I$502,MATCH('NGC024'!D18,Integrale!$H$3:$H$502,1)+1) -> 0.0035828125 | N18: 0.7166437414 | O18: 0.2833562586
A19: 3.22 | B19: 67.4 | C19: 2.3 | D19: 0.2657496561 | E19: 0.005308271172 | F19: 2706888675 | G19: 60.12940885 | H19: 10.79 | J19: =INDEX(Integrale!$H$3:$H$502,MATCH('NGC024'!D19,Integrale!$H$3:$H$502,1)) -> 0.26 | K19: =INDEX(Integrale!$I$3:$I$502,MATCH('NGC024'!D19,Integrale!$H$3:$H$502,1)) -> 0.0050024204 | L19: =INDEX(Integrale!$H$3:$H$502,MATCH('NGC024'!D19,Integrale!$H$3:$H$502,1)+1) -> 0.27 | M19: =INDEX(Integrale!$I$3:$I$502,MATCH('NGC024'!D19,Integrale!$H$3:$H$502,1)+1) -> 0.0055343666 | N19: 0.4250343879 | O19: 0.5749656121
A20: 3.77 | B20: 69.8 | C20: 0.7 | D20: 0.3111416781 | E20: 0.008023416408 | F20: 4091444145 | G20: 68.31991396 | H20: 2.12 | J20: =INDEX(Integrale!$H$3:$H$502,MATCH('NGC024'!D20,Integrale!$H$3:$H$502,1)) -> 0.31 | K20: =INDEX(Integrale!$I$3:$I$502,MATCH('NGC024'!D20,Integrale!$H$3:$H$502,1)) -> 0.0079467677 | L20: =INDEX(Integrale!$H$3:$H$502,MATCH('NGC024'!D20,Integrale!$H$3:$H$502,1)+1) -> 0.32 | M20: =INDEX(Integrale!$I$3:$I$502,MATCH('NGC024'!D20,Integrale!$H$3:$H$502,1)+1) -> 0.0086181365 | N20: 0.8858321871 | O20: 0.1141678129
A21: 4.31 | B21: 71.3 | C21: 1.1 | D21: 0.3557083906 | E21: 0.01122243465 | F21: 5722744804 | G21: 75.56892204 | H21: 5.99 | J21: =INDEX(Integrale!$H$3:$H$502,MATCH('NGC024'!D21,Integrale!$H$3:$H$502,1)) -> 0.35 | K21: =INDEX(Integrale!$I$3:$I$502,MATCH('NGC024'!D21,Integrale!$H$3:$H$502,1)) -> 0.0107834863 | L21: =INDEX(Integrale!$H$3:$H$502,MATCH('NGC024'!D21,Integrale!$H$3:$H$502,1)+1) -> 0.36 | M21: =INDEX(Integrale!$I$3:$I$502,MATCH('NGC024'!D21,Integrale!$H$3:$H$502,1)+1) -> 0.0115524392 | N21: 0.4291609354 | O21: 0.5708390646
A22: 4.85 | B22: 73.2 | C22: 1.7 | D22: 0.4002751032 | E22: 0.01485794443 | F22: 7576629039 | G22: 81.96846745 | H22: 11.98 | J22: =INDEX(Integrale!$H$3:$H$502,MATCH('NGC024'!D22,Integrale!$H$3:$H$502,1)) -> 0.4 | K22: =INDEX(Integrale!$I$3:$I$502,MATCH('NGC024'!D22,Integrale!$H$3:$H$502,1)) -> 0.0148341297 | L22: =INDEX(Integrale!$H$3:$H$502,MATCH('NGC024'!D22,Integrale!$H$3:$H$502,1)+1) -> 0.41 | M22: =INDEX(Integrale!$I$3:$I$502,MATCH('NGC024'!D22,Integrale!$H$3:$H$502,1)+1) -> 0.0156997951 | N22: 0.9724896836 | O22: 0.02751031637
A23: 5.38 | B23: 75.1 | C23: 3 | D23: 0.4440165062 | E23: 0.01875327346 | F23: 9563004961 | G23: 87.4350827 | H23: 16.42 | J23: =INDEX(Integrale!$H$3:$H$502,MATCH('NGC024'!D23,Integrale!$H$3:$H$502,1)) -> 0.44 | K23: =INDEX(Integrale!$I$3:$I$502,MATCH('NGC024'!D23,Integrale!$H$3:$H$502,1)) -> 0.0183840679 | L23: =INDEX(Integrale!$H$3:$H$502,MATCH('NGC024'!D23,Integrale!$H$3:$H$502,1)+1) -> 0.45 | M23: =INDEX(Integrale!$I$3:$I$502,MATCH('NGC024'!D23,Integrale!$H$3:$H$502,1)+1) -> 0.0193032886 | N23: 0.598349381 | O23: 0.401650619
A24: 5.92 | B24: 78.5 | C24: 3.8 | D24: 0.4885832187 | E24: 0.02293026575 | F24: 1.169301165e+10 | G24: 92.16839193 | H24: 17.41 | J24: =INDEX(Integrale!$H$3:$H$502,MATCH('NGC024'!D24,Integrale!$H$3:$H$502,1)) -> 0.48 | K24: =INDEX(Integrale!$I$3:$I$502,MATCH('NGC024'!D24,Integrale!$H$3:$H$502,1)) -> 0.0221146072 | L24: =INDEX(Integrale!$H$3:$H$502,MATCH('NGC024'!D24,Integrale!$H$3:$H$502,1)+1) -> 0.49 | M24: =INDEX(Integrale!$I$3:$I$502,MATCH('NGC024'!D24,Integrale!$H$3:$H$502,1)+1) -> 0.0230649017 | N24: 0.1416781293 | O24: 0.8583218707
A25: 6.46 | B25: 81.4 | C25: 5 | D25: 0.5331499312 | E25: 0.0271970589 | F25: 1.386881121e+10 | G25: 96.09107049 | H25: 18.05 | J25: =INDEX(Integrale!$H$3:$H$502,MATCH('NGC024'!D25,Integrale!$H$3:$H$502,1)) -> 0.53 | K25: =INDEX(Integrale!$I$3:$I$502,MATCH('NGC024'!D25,Integrale!$H$3:$H$502,1)) -> 0.0268952255 | L25: =INDEX(Integrale!$H$3:$H$502,MATCH('NGC024'!D25,Integrale!$H$3:$H$502,1)+1) -> 0.54 | M25: =INDEX(Integrale!$I$3:$I$502,MATCH('NGC024'!D25,Integrale!$H$3:$H$502,1)+1) -> 0.0278534477 | N25: 0.6850068776 | O25: 0.3149931224
A26: 6.99 | B26: 83.5 | C26: 7 | D26: 0.5768913343 | E26: =N26*K26+O26*M26 -> 0.03135868952 | F26: 1.59909844e+10 | G26: 99.19246535 | H26: 18.79 | J26: =INDEX(Integrale!$H$3:$H$502,MATCH('NGC024'!D26,Integrale!$H$3:$H$502,1)) -> 0.57 | K26: =INDEX(Integrale!$I$3:$I$502,MATCH('NGC024'!D26,Integrale!$H$3:$H$502,1)) -> 0.0307095554 | L26: =INDEX(Integrale!$H$3:$H$502,MATCH('NGC024'!D26,Integrale!$H$3:$H$502,1)+1) -> 0.58 | M26: =INDEX(Integrale!$I$3:$I$502,MATCH('NGC024'!D26,Integrale!$H$3:$H$502,1)+1) -> 0.0316515125 | N26: 0.310866575 | O26: 0.689133425
A27: 7.53 | B27: 87.1 | C27: 7.2 | D27: =A27/$C$12 -> 0.6214580468 | E27: =N27*K27+O27*M27 -> 0.0354714785 | F27: =4*$H$12*$E$12*POWER($C$12,3)*E27 -> 1.808825139e+10 | G27: =POWER($I$8*F27/A27,0.5) -> 101.6437026 | H27: =ROUND(ABS((B27-G27)/B27)*100,2) -> 16.7 | J27: =INDEX(Integrale!$H$3:$H$502,MATCH('NGC024'!D27,Integrale!$H$3:$H$502,1)) -> 0.62 | K27: =INDEX(Integrale!$I$3:$I$502,MATCH('NGC024'!D27,Integrale!$H$3:$H$502,1)) -> 0.0353405729 | L27: =INDEX(Integrale!$H$3:$H$502,MATCH('NGC024'!D27,Integrale!$H$3:$H$502,1)+1) -> 0.63 | M27: =INDEX(Integrale!$I$3:$I$502,MATCH('NGC024'!D27,Integrale!$H$3:$H$502,1)+1) -> 0.0362383877 | N27: =(L27-D27)/(L27-J27) -> 0.8541953232 | O27: =(D27-J27)/(L27-J27) -> 0.1458046768
A28: 8.07 | B28: 90.7 | C28: 4.8 | D28: 0.6660247593 | E28: 0.03937039083 | F28: 2.007645457e+10 | G28: 103.4395006 | H28: 14.05 | J28: =INDEX(Integrale!$H$3:$H$502,MATCH('NGC024'!D28,Integrale!$H$3:$H$502,1)) -> 0.66 | K28: =INDEX(Integrale!$I$3:$I$502,MATCH('NGC024'!D28,Integrale!$H$3:$H$502,1)) -> 0.0388598276 | L28: =INDEX(Integrale!$H$3:$H$502,MATCH('NGC024'!D28,Integrale!$H$3:$H$502,1)+1) -> 0.67 | M28: =INDEX(Integrale!$I$3:$I$502,MATCH('NGC024'!D28,Integrale!$H$3:$H$502,1)+1) -> 0.0397072693 | N28: 0.3975240715 | O28: 0.6024759285
A29: 8.62 | B29: 93.1 | C29: 1.4 | D29: 0.7114167813 | E29: 0.04305874135 | F29: 2.195728431e+10 | G29: 104.6683438 | H29: 12.43 | J29: =INDEX(Integrale!$H$3:$H$502,MATCH('NGC024'!D29,Integrale!$H$3:$H$502,1)) -> 0.71 | K29: =INDEX(Integrale!$I$3:$I$502,MATCH('NGC024'!D29,Integrale!$H$3:$H$502,1)) -> 0.0429494641 | L29: =INDEX(Integrale!$H$3:$H$502,MATCH('NGC024'!D29,Integrale!$H$3:$H$502,1)+1) -> 0.72 | M29: =INDEX(Integrale!$I$3:$I$502,MATCH('NGC024'!D29,Integrale!$H$3:$H$502,1)+1) -> 0.0437207705 | N29: 0.8583218707 | O29: 0.1416781293
A30: 9.14 | B30: 95.9 | C30: 2.1 | D30: 0.7543328748 | E30: 0.04623981438 | F30: 2.357943402e+10 | G30: 105.3351366 | H30: 9.84 | J30: =INDEX(Integrale!$H$3:$H$502,MATCH('NGC024'!D30,Integrale!$H$3:$H$502,1)) -> 0.75 | K30: =INDEX(Integrale!$I$3:$I$502,MATCH('NGC024'!D30,Integrale!$H$3:$H$502,1)) -> 0.0459348212 | L30: =INDEX(Integrale!$H$3:$H$502,MATCH('NGC024'!D30,Integrale!$H$3:$H$502,1)+1) -> 0.76 | M30: =INDEX(Integrale!$I$3:$I$502,MATCH('NGC024'!D30,Integrale!$H$3:$H$502,1)+1) -> 0.0466387261 | N30: 0.5667125172 | O30: 0.4332874828
A31: 9.69 | B31: 98.4 | C31: 5.2 | D31: 0.7997248968 | E31: 0.04926242366 | F31: 2.512077706e+10 | G31: 105.592803 | H31: 7.31 | J31: =INDEX(Integrale!$H$3:$H$502,MATCH('NGC024'!D31,Integrale!$H$3:$H$502,1)) -> 0.79 | K31: =INDEX(Integrale!$I$3:$I$502,MATCH('NGC024'!D31,Integrale!$H$3:$H$502,1)) -> 0.0486459007 | L31: =INDEX(Integrale!$H$3:$H$502,MATCH('NGC024'!D31,Integrale!$H$3:$H$502,1)+1) -> 0.8 | M31: =INDEX(Integrale!$I$3:$I$502,MATCH('NGC024'!D31,Integrale!$H$3:$H$502,1)+1) -> 0.0492798642 | N31: 0.02751031637 | O31: 0.9724896836
A32: 10.23 | B32: 101 | C32: 8.2 | D32: 0.8442916094 | E32: 0.05187513381 | F32: 2.6453097e+10 | G32: 105.4581426 | H32: 4.41 | J32: =INDEX(Integrale!$H$3:$H$502,MATCH('NGC024'!D32,Integrale!$H$3:$H$502,1)) -> 0.84 | K32: =INDEX(Integrale!$I$3:$I$502,MATCH('NGC024'!D32,Integrale!$H$3:$H$502,1)) -> 0.0516404838 | L32: =INDEX(Integrale!$H$3:$H$502,MATCH('NGC024'!D32,Integrale!$H$3:$H$502,1)+1) -> 0.85 | M32: =INDEX(Integrale!$I$3:$I$502,MATCH('NGC024'!D32,Integrale!$H$3:$H$502,1)+1) -> 0.0521872484 | N32: 0.5708390646 | O32: 0.4291609354
A33: 10.76 | B33: 103 | C33: 9.4 | D33: 0.8880330124 | E33: 0.05411102855 | F33: 2.759326448e+10 | G33: 105.0207411 | H33: 1.96 | J33: =INDEX(Integrale!$H$3:$H$502,MATCH('NGC024'!D33,Integrale!$H$3:$H$502,1)) -> 0.88 | K33: =INDEX(Integrale!$I$3:$I$502,MATCH('NGC024'!D33,Integrale!$H$3:$H$502,1)) -> 0.0537257701 | L33: =INDEX(Integrale!$H$3:$H$502,MATCH('NGC024'!D33,Integrale!$H$3:$H$502,1)+1) -> 0.89 | M33: =INDEX(Integrale!$I$3:$I$502,MATCH('NGC024'!D33,Integrale!$H$3:$H$502,1)+1) -> 0.0542053641 | N33: 0.196698762 | O33: 0.803301238
A34: 11.3 | B34: 104 | C34: 9.4 | D34: 0.9325997249 | E34: 0.05606841632 | F34: 2.859141069e+10 | G34: 104.3177575 | H34: 0.31 | J34: =INDEX(Integrale!$H$3:$H$502,MATCH('NGC024'!D34,Integrale!$H$3:$H$502,1)) -> 0.93 | K34: =INDEX(Integrale!$I$3:$I$502,MATCH('NGC024'!D34,Integrale!$H$3:$H$502,1)) -> 0.0559641145 | L34: =INDEX(Integrale!$H$3:$H$502,MATCH('NGC024'!D34,Integrale!$H$3:$H$502,1)+1) -> 0.94 | M34: =INDEX(Integrale!$I$3:$I$502,MATCH('NGC024'!D34,Integrale!$H$3:$H$502,1)+1) -> 0.0563653178 | N34: 0.7400275103 | O34: 0.2599724897
A35: 11.84 | B35: 105 | C35: 8.9 | D35: 0.9771664374 | E35: 0.05772813358 | F35: 2.943776343e+10 | G35: 103.4084972 | H35: 1.52 | J35: =INDEX(Integrale!$H$3:$H$502,MATCH('NGC024'!D35,Integrale!$H$3:$H$502,1)) -> 0.97 | K35: =INDEX(Integrale!$I$3:$I$502,MATCH('NGC024'!D35,Integrale!$H$3:$H$502,1)) -> 0.0574815594 | L35: =INDEX(Integrale!$H$3:$H$502,MATCH('NGC024'!D35,Integrale!$H$3:$H$502,1)+1) -> 0.98 | M35: =INDEX(Integrale!$I$3:$I$502,MATCH('NGC024'!D35,Integrale!$H$3:$H$502,1)+1) -> 0.0578256274 | N35: 0.2833562586 | O35: 0.7166437414
A36: 12.38 | B36: 105 | C36: 8.4 | D36: 1.02173315 | E36: 0.05911966468 | F36: 3.014735789e+10 | G36: 102.339662 | H36: 2.53 | J36: =INDEX(Integrale!$H$3:$H$502,MATCH('NGC024'!D36,Integrale!$H$3:$H$502,1)) -> 1.02 | K36: =INDEX(Integrale!$I$3:$I$502,MATCH('NGC024'!D36,Integrale!$H$3:$H$502,1)) -> 0.059071064 | L36: =INDEX(Integrale!$H$3:$H$502,MATCH('NGC024'!D36,Integrale!$H$3:$H$502,1)+1) -> 1.03 | M36: =INDEX(Integrale!$I$3:$I$502,MATCH('NGC024'!D36,Integrale!$H$3:$H$502,1)+1) -> 0.0593514822 | N36: 0.8266850069 | O36: 0.1733149931
A37: 12.91 | B37: 105 | C37: 9 | D37: 1.065474553 | E37: 0.06025330115 | F37: 3.072544209e+10 | G37: 101.1732315 | H37: 3.64 | J37: =INDEX(Integrale!$H$3:$H$502,MATCH('NGC024'!D37,Integrale!$H$3:$H$502,1)) -> 1.06 | K37: =INDEX(Integrale!$I$3:$I$502,MATCH('NGC024'!D37,Integrale!$H$3:$H$502,1)) -> 0.0601241663 | L37: =INDEX(Integrale!$H$3:$H$502,MATCH('NGC024'!D37,Integrale!$H$3:$H$502,1)+1) -> 1.07 | M37: =INDEX(Integrale!$I$3:$I$502,MATCH('NGC024'!D37,Integrale!$H$3:$H$502,1)+1) -> 0.0603600483 | N37: 0.4525447043 | O37: 0.5474552957
A38: 13.48 | B38: 106 | C38: 8.4 | D38: 1.112517194 | E38: 0.06125174381 | F38: 3.123458585e+10 | G38: 99.82805331 | H38: 5.82 | J38: =INDEX(Integrale!$H$3:$H$502,MATCH('NGC024'!D38,Integrale!$H$3:$H$502,1)) -> 1.11 | K38: =INDEX(Integrale!$I$3:$I$502,MATCH('NGC024'!D38,Integrale!$H$3:$H$502,1)) -> 0.0612044228 | L38: =INDEX(Integrale!$H$3:$H$502,MATCH('NGC024'!D38,Integrale!$H$3:$H$502,1)+1) -> 1.12 | M38: =INDEX(Integrale!$I$3:$I$502,MATCH('NGC024'!D38,Integrale!$H$3:$H$502,1)+1) -> 0.0613924139 | N38: 0.7482806052 | O38: 0.2517193948
A39: 14.01 | B39: 108 | C39: 7.7 | D39: 1.156258597 | E39: 0.06200348365 | F39: 3.161792649e+10 | G39: 98.52065658 | H39: 8.78 | J39: =INDEX(Integrale!$H$3:$H$502,MATCH('NGC024'!D39,Integrale!$H$3:$H$502,1)) -> 1.15 | K39: =INDEX(Integrale!$I$3:$I$502,MATCH('NGC024'!D39,Integrale!$H$3:$H$502,1)) -> 0.0619061425 | L39: =INDEX(Integrale!$H$3:$H$502,MATCH('NGC024'!D39,Integrale!$H$3:$H$502,1)+1) -> 1.16 | M39: =INDEX(Integrale!$I$3:$I$502,MATCH('NGC024'!D39,Integrale!$H$3:$H$502,1)+1) -> 0.0620616744 | N39: 0.3741403026 | O39: 0.6258596974
A40: 14.54 | B40: 107 | C40: 9.2 | D40: 1.2 | E40: 0.0626131314 | F40: 3.192880898e+10 | G40: 97.18267041 | H40: 9.18 | J40: =INDEX(Integrale!$H$3:$H$502,MATCH('NGC024'!D40,Integrale!$H$3:$H$502,1)) -> 1.2 | K40: =INDEX(Integrale!$I$3:$I$502,MATCH('NGC024'!D40,Integrale!$H$3:$H$502,1)) -> 0.0626131314 | L40: =INDEX(Integrale!$H$3:$H$502,MATCH('NGC024'!D40,Integrale!$H$3:$H$502,1)+1) -> 1.21 | M40: =INDEX(Integrale!$I$3:$I$502,MATCH('NGC024'!D40,Integrale!$H$3:$H$502,1)+1) -> 0.0627347243 | N40: 1 | O40: 0
G41: Erreur moy | H41: =ROUND(AVERAGE(H15:H40),2) -> 12.21
B42: Précision= | C42: =ROUND(MAX(0,100-H41),2) -> 87.79 | D42: %
A44: R | B44: V_Obs | C44: Incer V_Obs | D44: V_TURI | E44: A=(V_obs-V_TURI)^2 | F44: A/Incer V_Obs^2
A45: =A15 -> 1.08 | B45: =B15 -> 34.6 | C45: =C15 -> 0.9 | D45: =ROUND(G15,2) -> 21.78 | E45: =ROUND(POWER((B45-D45),2),2) -> 164.35 | F45: =ROUND(E45/POWER(C45,2),2) -> 202.9
A46: =A16 -> 1.61 | B46: =B16 -> 47 | C46: 0.8 | D46: =ROUND(G16,2) -> 32.05 | E46: =ROUND(POWER((B46-D46),2),2) -> 223.5 | F46: =ROUND(E46/POWER(C46,2),2) -> 349.22
A47: 2.15 | B47: =B17 -> 59.1 | C47: 3.1 | D47: 42.05 | E47: 290.7 | F47: 30.25
A48: 2.7 | B48: =B18 -> 64.4 | C48: 1.4 | D48: 51.66 | E48: 162.31 | F48: 82.81
A49: 3.22 | B49: =B19 -> 67.4 | C49: 2.3 | D49: 60.13 | E49: 52.85 | F49: 9.99
A50: 3.77 | B50: =B20 -> 69.8 | C50: 0.7 | D50: 68.32 | E50: 2.19 | F50: 4.47
A51: 4.31 | B51: =B21 -> 71.3 | C51: 1.1 | D51: 75.57 | E51: 18.23 | F51: 15.07
A52: 4.85 | B52: =B22 -> 73.2 | C52: 1.7 | D52: 81.97 | E52: 76.91 | F52: 26.61
A53: 5.38 | B53: =B23 -> 75.1 | C53: 3 | D53: 87.44 | E53: 152.28 | F53: 16.92
A54: 5.92 | B54: =B24 -> 78.5 | C54: 3.8 | D54: 92.17 | E54: 186.87 | F54: 12.94
A55: 6.46 | B55: =B25 -> 81.4 | C55: 5 | D55: 96.09 | E55: 215.8 | F55: 8.63
A56: 6.99 | B56: =B26 -> 83.5 | C56: 7 | D56: 99.19 | E56: 246.18 | F56: 5.02
A57: 7.53 | B57: 87.1 | C57: 7.2 | D57: 101.64 | E57: 211.41 | F57: 4.08
A58: 8.07 | B58: 90.7 | C58: 4.8 | D58: 103.44 | E58: 162.31 | F58: 7.04
A59: 8.62 | B59: 93.1 | C59: 1.4 | D59: 104.67 | E59: 133.86 | F59: 68.3
A60: 9.14 | B60: 95.9 | C60: 2.1 | D60: 105.34 | E60: 89.11 | F60: 20.21
A61: 9.69 | B61: 98.4 | C61: 5.2 | D61: 105.59 | E61: 51.7 | F61: 1.91
A62: =A32 -> 10.23 | B62: 101 | C62: 8.2 | D62: 105.46 | E62: 19.89 | F62: 0.3
A63: 10.76 | B63: 103 | C63: 9.4 | D63: 105.02 | E63: 4.08 | F63: 0.05
A64: 11.3 | B64: 104 | C64: 9.4 | D64: 104.32 | E64: 0.1 | F64: 0
A65: 11.84 | B65: 105 | C65: 8.9 | D65: 103.41 | E65: 2.53 | F65: 0.03
A66: 12.38 | B66: 105 | C66: 8.4 | D66: 102.34 | E66: 7.08 | F66: 0.1
A67: 12.91 | B67: 105 | C67: 9 | D67: 101.17 | E67: 14.67 | F67: 0.18
A68: 13.48 | B68: 106 | C68: 8.4 | D68: 99.83 | E68: 38.07 | F68: 0.54
A69: 14.01 | B69: 108 | C69: 7.7 | D69: 98.52 | E69: 89.87 | F69: 1.52
A70: =A40 -> 14.54 | B70: 107 | C70: 9.2 | D70: 97.18 | E70: 96.43 | F70: 1.14
E71: X^2/d_f= | F71: =ROUND(SUM(F45:F70)/(COUNT(F45:F70)-2),2) -> 36.26

Sheet Integrale
H1: u | I1: I(u) = Integrale de 0 à u de ( x^2sech^8(x)dx
H2: 0 | I2: 0
H3: 0.01 | I3: 4.998e-07
H4: 0.02 | I4: 2.9964e-06
H5: 0.03 | I5: 9.477e-06
H6: 0.04 | I6: 2.19098e-05
H7: 0.05 | I7: 4.22345e-05
H8: 0.06 | I8: 7.2353e-05
H9: 0.07 | I9: 0.0001141207
H10: 0.08 | I10: 0.0001693376
H11: 0.09 | I11: 0.0002397401
H12: 0.1 | I12: 0.0003269934
H13: 0.11 | I13: 0.0004326832
H14: 0.12 | I14: 0.0005583096
H15: 0.13 | I15: 0.0007052805
H16: 0.14 | I16: 0.0008749055
H17: 0.15 | I17: 0.0010683906
H18: 0.16 | I18: 0.001286834
H19: 0.17 | I19: 0.001531222
H20: 0.18 | I20: 0.0018024255
H21: 0.19 | I21: 0.0021011974
H22: 0.2 | I22: 0.0024281708
H23: 0.21 | I23: 0.0027838579
H24: 0.22 | I24: 0.0031686489
H25: 0.23 | I25: 0.0035828125
H26: 0.24 | I26: 0.0040264964
H27: 0.25 | I27: 0.0044997288
H28: 0.26 | I28: 0.0050024204
H29: 0.27 | I29: 0.0055343666
H30: 0.28 | I30: 0.006095251
H31: 0.29 | I31: 0.0066846487
H32: 0.3 | I32: 0.0073020305
H33: 0.31 | I33: 0.0079467677
H34: 0.32 | I34: 0.0086181365
H35: 0.33 | I35: 0.0093153237
H36: 0.34 | I36: 0.010037432
H37: 0.35 | I37: 0.0107834863
H38: 0.36 | I38: 0.0115524392
H39: 0.37 | I39: 0.0123431779
H40: 0.38 | I40: 0.0131545302
H41: 0.39 | I41: 0.0139852712
H42: 0.4 | I42: 0.0148341297
H43: 0.41 | I43: 0.0156997951
H44: 0.42 | I44: 0.0165809236
H45: 0.43 | I45: 0.0174761447
H46: 0.44 | I46: 0.0183840679
H47: 0.45 | I47: 0.0193032886
H48: 0.46 | I48: 0.0202323944
H49: 0.47 | I49: 0.0211699709
H50: 0.48 | I50: 0.0221146072
H51: 0.49 | I51: 0.0230649017
H52: 0.5 | I52: 0.0240194669
H53: 0.51 | I53: 0.0249769344
H54: 0.52 | I54: 0.0259359595
H55: 0.53 | I55: 0.0268952255
H56: 0.54 | I56: 0.0278534477
H57: 0.55 | I57: 0.0288093767
H58: 0.56 | I58: 0.0297618021
H59: 0.57 | I59: 0.0307095554
H60: 0.58 | I60: 0.0316515125
H61: 0.59 | I61: 0.0325865959
H62: 0.6 | I62: 0.0335137772
H63: 0.61 | I63: 0.0344320783
H64: 0.62 | I64: 0.0353405729
H65: 0.63 | I65: 0.0362383877
H66: 0.64 | I66: 0.037124703
H67: 0.65 | I67: 0.0379987533
H68: 0.66 | I68: 0.0388598276
H69: 0.67 | I69: 0.0397072693
H70: 0.68 | I70: 0.040540476
H71: 0.69 | I71: 0.0413588991
H72: 0.7 | I72: 0.0421620429
H73: 0.71 | I73: 0.0429494641
H74: 0.72 | I74: 0.0437207705
H75: 0.73 | I75: 0.04447562
H76: 0.74 | I76: 0.0452137189
H77: 0.75 | I77: 0.0459348212
H78: 0.76 | I78: 0.0466387261
H79: 0.77 | I79: 0.0473252771
H80: 0.78 | I80: 0.0479943599
H81: 0.79 | I81: 0.0486459007
H82: 0.8 | I82: 0.0492798642
H83: 0.81 | I83: 0.0498962518
H84: 0.82 | I84: 0.0504950998
H85: 0.83 | I85: 0.0510764772
H86: 0.84 | I86: 0.0516404838
H87: 0.85 | I87: 0.0521872484
H88: 0.86 | I88: 0.0527169267
H89: 0.87 | I89: 0.0532296993
H90: 0.88 | I90: 0.0537257701
H91: 0.89 | I91: 0.0542053641
H92: 0.9 | I92: 0.0546687257
H93: 0.91 | I93: 0.0551161169
H94: 0.92 | I94: 0.0555478158
H95: 0.93 | I95: 0.0559641145
H96: 0.94 | I96: 0.0563653178
H97: 0.95 | I97: 0.0567517415
H98: 0.96 | I98: 0.0571237109
H99: 0.97 | I99: 0.0574815594
H100: 0.98 | I100: 0.0578256274
H101: 0.99 | I101: 0.0581562605
H102: 1 | I102: 0.0584738086
H103: 1.01 | I103: 0.0587786248
H104: 1.02 | I104: 0.059071064
H105: 1.03 | I105: 0.0593514822
H106: 1.04 | I106: 0.0596202355
H107: 1.05 | I107: 0.0598776791
H108: 1.06 | I108: 0.0601241663
H109: 1.07 | I109: 0.0603600483
H110: 1.08 | I110: 0.060585673
H111: 1.09 | I111: 0.0608013846
H112: 1.1 | I112: 0.0610075229
H113: 1.11 | I113: 0.0612044228
H114: 1.12 | I114: 0.0613924139
H115: 1.13 | I115: 0.0615718202
H116: 1.14 | I116: 0.0617429593
H117: 1.15 | I117: 0.0619061425
H118: 1.16 | I118: 0.0620616744
H119: 1.17 | I119: 0.0622098525
H120: 1.18 | I120: 0.0623509673
H121: 1.19 | I121: 0.0624853017
H122: 1.2 | I122: 0.0626131314
H123: 1.21 | I123: 0.0627347243
H124: 1.22 | I124: 0.0628503409
H125: 1.23 | I125: 0.0629602337
H126: 1.24 | I126: 0.0630646479
H127: 1.25 | I127: 0.0631638207
H128: 1.26 | I128: 0.0632579818
H129: 1.27 | I129: 0.0633473531
H130: 1.28 | I130: 0.0634321492
H131: 1.29 | I131: 0.0635125771
H132: 1.3 | I132: 0.0635888365
H133: 1.31 | I133: 0.0636611197
H134: 1.32 | I134: 0.0637296121
H135: 1.33 | I135: 0.0637944919
H136: 1.34 | I136: 0.0638559305
H137: 1.35 | I137: 0.0639140927
H138: 1.36 | I138: 0.0639691366
H139: 1.37 | I139: 0.064021214
H140: 1.38 | I140: 0.0640704704
H141: 1.39 | I141: 0.0641170452
H142: 1.4 | I142: 0.064161072
H143: 1.41 | I143: 0.0642026787
H144: 1.42 | I144: 0.0642419876
H145: 1.43 | I145: 0.0642791157
H146: 1.44 | I146: 0.0643141746
H147: 1.45 | I147: 0.064347271
H148: 1.46 | I148: 0.064378507
H149: 1.47 | I149: 0.0644079795
H150: 1.48 | I150: 0.0644357814
H151: 1.49 | I151: 0.0644620009
H152: 1.5 | I152: 0.0644867222
H153: 1.51 | I153: 0.0645100253
H154: 1.52 | I154: 0.0645319867
H155: 1.53 | I155: 0.0645526787
H156: 1.54 | I156: 0.0645721705
H157: 1.55 | I157: 0.0645905275
H158: 1.56 | I158: 0.0646078121
H159: 1.57 | I159: 0.0646240835
H160: 1.58 | I160: 0.0646393978
H161: 1.59 | I161: 0.0646538084
H162: 1.6 | I162: 0.0646673658
H163: 1.61 | I163: 0.064680118
H164: 1.62 | I164: 0.0646921104
H165: 1.63 | I165: 0.0647033862
H166: 1.64 | I166: 0.0647139861
H167: 1.65 | I167: 0.0647239487
H168: 1.66 | I168: 0.0647333107
H169: 1.67 | I169: 0.0647421067
H170: 1.68 | I170: 0.0647503694
H171: 1.69 | I171: 0.0647581297
H172: 1.7 | I172: 0.064765417
H173: 1.71 | I173: 0.064772259
H174: 1.72 | I174: 0.0647786817
H175: 1.73 | I175: 0.0647847098
H176: 1.74 | I176: 0.0647903667
H177: 1.75 | I177: 0.0647956744
H178: 1.76 | I178: 0.0648006536
H179: 1.77 | I179: 0.064805324
H180: 1.78 | I180: 0.0648097041
H181: 1.79 | I181: 0.0648138112
H182: 1.8 | I182: 0.0648176618
H183: 1.81 | I183: 0.0648212714
H184: 1.82 | I184: 0.0648246547
H185: 1.83 | I185: 0.0648278252
H186: 1.84 | I186: 0.0648307961
H187: 1.85 | I187: 0.0648335795
H188: 1.86 | I188: 0.0648361869
H189: 1.87 | I189: 0.0648386291
H190: 1.88 | I190: 0.0648409162
H191: 1.89 | I191: 0.0648430578
H192: 1.9 | I192: 0.064845063
H193: 1.91 | I193: 0.0648469402
H194: 1.92 | I194: 0.0648486973
H195: 1.93 | I195: 0.0648503418
H196: 1.94 | I196: 0.0648518808
H197: 1.95 | I197: 0.0648533208
H198: 1.96 | I198: 0.0648546681
H199: 1.97 | I199: 0.0648559285
H200: 1.98 | I200: 0.0648571074
... 172 more rows

Sheet Feuil3
